fUSD/lending_fUSD_20240109
["ID","MTS","AMOUNT","RATE_DAILY","PERIOD"]
[310905432,1704814275621,-500.0,0.00041178,30]
[310905433,1704814275637,-500.0,0.00041178,30]
[310905434,1704814275654,-522.03247074,0.00041178,30]
[310905435,1704814275669,-500.0,0.00041178,30]
[310905436,1704814275685,-611.31,0.00041178,30]
[310905437,1704814275700,-507.05094895,0.00041178,30]
[310905438,1704814275715,-500.0,0.00041178,30]
[310905439,1704814275731,-500.0,0.00041178,30]
[310905440,1704814275747,-500.0,0.00041178,30]
[310905441,1704814275763,-500.0,0.00041178,30]
[310905442,1704814275779,-500.0,0.00041178,30]
[310905443,1704814275797,-500.0,0.00041178,30]
[310905444,1704814275812,-500.0,0.00041178,30]
[310905445,1704814275828,-500.0,0.00041178,30]
[310905446,1704814275843,-500.0,0.00041178,30]
[310905447,1704814275859,-500.0,0.00041178,30]
[310905448,1704814275874,-500.0,0.00041178,30]
[310905449,1704814275889,-500.0,0.00041178,30]
[310905450,1704814275905,-525.6268876,0.00041178,30]
[310905451,1704814275920,-396.59946637,0.00041178,30]
[310905452,1704814275937,-500.0,0.00041178,30]
[310905453,1704814275952,-500.0,0.00041178,30]
[310905454,1704814275966,-500.0,0.00041178,30]
[310905455,1704814275983,-569.87,0.00041178,2]
[310905456,1704814275999,-500.0,0.00041178,30]
[310905457,1704814276015,-500.0,0.00041178,30]
[310905458,1704814276030,-500.0,0.00041178,30]
[310905459,1704814276046,-500.0,0.00041178,30]
[310905460,1704814276062,-500.0,0.00041178,30]
[310905461,1704814276076,-1090.72,0.00041178,30]
[310905462,1704814276091,-808.52,0.00041178,30]
[310905463,1704814276106,-500.0,0.00041178,30]
[310905464,1704814276121,-500.0,0.00041178,30]
[310905465,1704814276139,-500.0,0.00041178,30]
[310905466,1704814276156,-560.64871954,0.00041178,30]
[310905467,1704814276174,-363.03225777,0.00041178,30]
[310905468,1704814276190,-500.0,0.00041178,30]
[310905469,1704814276208,-500.0,0.00041178,30]
[310905470,1704814276224,-500.0,0.00041178,30]
[310905471,1704814276241,-500.0,0.00041178,30]
[310905472,1704814276257,-500.0,0.00041178,30]
[310905473,1704814276272,-500.0,0.00041178,30]
[310905474,1704814276287,-500.0,0.00041178,30]
[310905475,1704814276299,-1089.41,0.00041178,30]
[310905476,1704814276309,-675.87,0.00041178,30]
[310905477,1704814276319,-500.0,0.00041178,30]
[310905478,1704814276328,-500.0,0.00041178,30]
[310905479,1704814276339,-500.0,0.00041178,30]
[310905480,1704814276349,-500.0,0.00041178,30]
[310905481,1704814276358,-500.0,0.00041178,30]
[310905482,1704814276757,-500.0,0.00041178,30]
[310905483,1704814276780,-500.0,0.00041178,30]
[310905484,1704814276801,-500.0,0.00041178,30]
[310905485,1704814276812,-978.4,0.00041178,30]
[310905486,1704814276822,-500.0,0.00041178,30]
[310905487,1704814276832,-500.0,0.00041178,30]
[310905488,1704814276842,-500.0,0.00041178,30]
[310905489,1704814276852,-500.0,0.00041178,30]
[310905490,1704814276861,-500.0,0.00041178,30]
[310905491,1704814276871,-500.0,0.00041178,30]
[310905492,1704814276880,-500.0,0.00041178,30]
[310905493,1704814276889,-500.0,0.00041178,30]
[310905494,1704814276899,-943.45,0.00041178,30]
[310905495,1704814276909,-500.0,0.00041178,30]
[310905496,1704814276918,-318.82316892,0.00041178,30]
[310905497,1704814276928,-500.0,0.00041178,30]
[310905498,1704814276938,-500.0,0.00041178,30]
[310905499,1704814276947,-1046.91,0.00041178,30]
[310905500,1704814276956,-500.0,0.00041178,30]
[310905501,1704814276966,-500.0,0.00041178,30]
[310905502,1704814276975,-500.0,0.00041178,30]
[310905503,1704814276984,-500.0,0.00041178,30]
[310905504,1704814276994,-500.0,0.00041178,30]
[310905505,1704814277003,-500.0,0.00041178,30]
[310905506,1704814277013,-989.32,0.00041178,30]
[310905507,1704814277022,-500.0,0.00041178,30]
[310905508,1704814277032,-500.0,0.00041178,30]
[310905509,1704814277043,-500.0,0.00041178,30]
[310905510,1704814277052,-523.36,0.00041178,30]
[310905511,1704814277061,-735.81,0.00041178,30]
[310905512,1704814277070,-500.0,0.00041178,30]
[310905513,1704814277080,-500.0,0.00041178,30]
[310905514,1704814277090,-500.0,0.00041178,30]
[310905515,1704814277099,-500.0,0.00041178,30]
[310905516,1704814277109,-500.0,0.00041178,30]
[310905517,1704814277119,-500.0,0.00041178,7]
[310905518,1704814277128,-805.93,0.00041178,30]
[310905519,1704814277138,-500.0,0.00041178,30]
[310905520,1704814277148,-500.0,0.00041178,30]
[310905521,1704814277157,-500.0,0.00041178,30]
[310905522,1704814277167,-500.0,0.00041178,30]
[310905523,1704814277176,-500.0,0.00041178,30]
[310905524,1704814277186,-500.0,0.00041178,30]
[310905525,1704814277196,-500.0,0.00041178,30]
[310905526,1704814277206,-500.0,0.00041178,30]
[310905527,1704814277215,-500.0,0.00041178,30]
[310905528,1704814277225,-1029.87,0.00041178,30]
[310905529,1704814277234,-500.0,0.00041178,30]
[310905530,1704814277243,-500.0,0.00041178,30]
[310905531,1704814277253,-500.0,0.00041178,30]
[310905532,1704814277263,-500.0,0.00041178,30]
[310905533,1704814277274,-858.42,0.00041178,30]
[310905534,1704814277285,-504.66035384,0.00041178,30]
[310905535,1704814277297,-500.0,0.00041178,30]
[310905536,1704814277307,-500.0,0.00041178,30]
[310905537,1704814277317,-585.48155257,0.00041178,30]
[310905538,1704814277326,-985.14,0.00041178,30]
[310905539,1704814277336,-250.0,0.00041178,30]
[310905540,1704814277345,-500.0,0.00041178,30]
[310905541,1704814277355,-887.41,0.00041178,30]
[310905542,1704814277365,-586.06,0.00041178,30]
[310905543,1704814277374,-210.89224854,0.00041178,30]
[310905544,1704814277413,-500.0,0.00041178,30]
[310905545,1704814277427,-542.26,0.00041178,30]
[310905546,1704814277437,-500.0,0.00041178,30]
[310905547,1704814277447,-500.0,0.00041178,30]
[310905548,1704814277456,-924.59,0.00041178,30]
[310905549,1704814277466,-639.05,0.00041178,30]
[310905550,1704814277477,-500.0,0.00041178,30]
[310905551,1704814277486,-504.01806582,0.00041178,30]
[310905552,1704814277497,-538.91086035,0.00041178,30]
[310905553,1704814277506,-1031.16,0.00041178,30]
[310905554,1704814277516,-500.0,0.00041178,2]
[310905555,1704814277525,-500.0,0.00041178,30]
[310905556,1704814277534,-519.61405327,0.00041178,30]
[310905557,1704814277545,-651.17,0.00041178,6]
[310905558,1704814277555,-510.45145369,0.00041178,30]
[310905559,1704814277564,-500.0,0.00041178,30]
[310905560,1704814277574,-500.0,0.00041178,30]
[310905561,1704814277583,-500.0,0.00041178,30]
[310905562,1704814277592,-509.80596528,0.00041178,30]
[310905563,1704814277602,-500.0,0.00041178,30]
[310905564,1704814277611,-630.96,0.00041178,30]
[310905565,1704814277620,-500.0,0.00041178,30]
[310905566,1704814277630,-500.0,0.00041178,30]
[310905567,1704814277639,-500.0,0.00041178,30]
[310905568,1704814277649,-509.443956,0.00041178,30]
[310905569,1704814277659,-500.0,0.00041178,30]
[310905570,1704814277668,-500.0,0.00041178,30]
[310905571,1704814277677,-500.0,0.00041178,30]
[310905572,1704814277687,-500.0,0.00041178,30]
[310905573,1704814277696,-768.03,0.00041178,30]
[310905574,1704814277705,-808.61,0.00041178,30]
[310905575,1704814277714,-500.0,0.00041178,30]
[310905576,1704814277723,-772.64,0.00041178,30]
[310905577,1704814277733,-500.0,0.00041178,30]
[310905578,1704814277742,-500.0,0.00041178,30]
[310905579,1704814277752,-500.0,0.00041178,30]
[310905580,1704814277761,-500.0,0.00041178,30]
[310905581,1704814277771,-500.0,0.00041178,30]
[310905582,1704814277780,-1151.39,0.00041178,30]
[310905583,1704814277790,-500.0,0.00041178,30]
[310905584,1704814277802,-500.0,0.00041178,30]
[310905585,1704814277812,-500.0,0.00041178,30]
[310905586,1704814277821,-500.0,0.00041178,30]
[310905587,1704814277831,-500.0,0.00041178,30]
[310905588,1704814277840,-500.0,0.00041178,30]
[310905589,1704814277850,-500.0,0.00041178,30]
[310905590,1704814277859,-500.0,0.00041178,30]
[310905591,1704814277869,-499.43232652,0.00041178,30]
[310905592,1704814277880,-500.0,0.00041178,30]
[310905593,1704814277889,-500.0,0.00041178,30]
[310905594,1704814277899,-500.0,0.00041178,30]
[310905595,1704814277909,-594.48,0.00041178,30]
[310905596,1704814277918,-504.38071652,0.00041178,30]
[310905597,1704814277928,-500.0,0.00041178,30]
[310905598,1704814277937,-321.46844516,0.00041178,30]
[310905599,1704814277947,-1345.27,0.00041178,30]
[310905600,1704814277956,-530.22,0.00041178,30]
[310905601,1704814277966,-508.23876205,0.00041178,30]
[310905602,1704814277976,-500.0,0.00041178,30]
[310905603,1704814277985,-504.9,0.00041178,30]
[310905604,1704814277994,-500.0,0.00041178,30]
[310905605,1704814278003,-500.0,0.00041178,30]
[310905606,1704814278013,-500.0,0.00041178,30]
[310905607,1704814278022,-507.99881593,0.00041178,30]
[310905608,1704814278031,-500.0,0.00041178,30]
[310905609,1704814278040,-500.0,0.00041178,30]
[310905610,1704814278051,-898.15,0.00041178,30]
[310905611,1704814278060,-500.0,0.00041178,30]
[310905612,1704814278070,-500.0,0.00041178,30]
[310905613,1704814278079,-501.99237055,0.00041178,30]
[310905614,1704814278089,-507.14837355,0.00041178,30]
[310905615,1704814278098,-1000.0,0.00041178,2]
[310905616,1704814278107,-500.0,0.00041178,30]
[310905617,1704814278117,-508.87588607,0.00041178,30]
[310905618,1704814278127,-500.0,0.00041178,30]
[310905619,1704814278136,-500.0,0.00041178,30]
[310905620,1704814278146,-827.59,0.00041178,30]
[310905621,1704814278156,-1088.78,0.00041178,30]
[310905622,1704814278165,-500.0,0.00041178,30]
[310905623,1704814278175,-500.0,0.00041178,30]
[310905624,1704814278185,-500.0,0.00041178,30]
[310905625,1704814278195,-500.0,0.00041178,30]
[310905626,1704814278204,-500.0,0.00041178,30]
[310905627,1704814278213,-500.0,0.00041178,30]
[310905628,1704814278222,-1220.08,0.00041178,30]
[310905629,1704814278232,-506.2463449,0.00041178,30]
[310905630,1704814278242,-500.0,0.00041178,30]
[310905631,1704814278252,-508.84968794,0.00041178,30]
[310905632,1704814278262,-500.0,0.00041178,30]
[310905633,1704814278272,-965.85,0.00041178,30]
[310905634,1704814278282,-453.66040637,0.00041178,30]
[310905635,1704814278292,-1200.92,0.00041178,30]
[310905636,1704814278301,-500.0,0.00041178,30]
[310905637,1704814278311,-500.0,0.00041178,30]
[310905638,1704814278320,-615.95,0.00041178,30]
[310905639,1704814278330,-512.13438507,0.00041178,30]
[310905640,1704814278339,-500.0,0.00041178,30]
[310905641,1704814278349,-500.0,0.00041178,30]
[310905642,1704814278358,-677.14,0.00041178,30]
[310905643,1704814278367,-500.0,0.00041178,30]
[310905644,1704814278377,-500.0,0.00041178,30]
[310905645,1704814278387,-500.0,0.00041178,30]
[310905646,1704814278397,-500.0,0.00041178,30]
[310905647,1704814278406,-500.0,0.00041178,30]
[310905648,1704814278416,-906.91,0.00041178,30]
[310905649,1704814278425,-500.0,0.00041178,30]
[310905650,1704814278434,-500.0,0.00041178,30]
[310905651,1704814278443,-500.0,0.00041178,30]
[310905652,1704814278453,-500.0,0.00041178,30]
[310905653,1704814278462,-500.0,0.00041178,30]
[310905654,1704814278471,-1003.46,0.00041178,30]
[310905655,1704814278480,-500.0,0.00041178,30]
[310905656,1704814278489,-500.0,0.00041178,30]
[310905657,1704814278499,-805.99,0.00041178,30]
[310905658,1704814278508,-500.0,0.00041178,30]
[310905659,1704814278517,-500.0,0.00041178,30]
[310905660,1704814278526,-500.0,0.00041178,30]
[310905661,1704814278536,-500.0,0.00041178,30]
[310905662,1704814278546,-398.651877,0.00041178,30]
[310905663,1704814278556,-513.45002721,0.00041178,30]
[310905664,1704814278565,-500.0,0.00041178,30]
[310905665,1704814278575,-500.0,0.00041178,30]
[310905666,1704814278584,-500.0,0.00041178,30]
[310905667,1704814278594,-920.79,0.00041178,30]
[310905668,1704814278603,-500.0,0.00041178,30]
[310905669,1704814278613,-500.0,0.00041178,30]
[310905670,1704814278622,-500.0,0.00041178,30]
[310905671,1704814278632,-507.52499924,0.00041178,30]
[310905672,1704814278641,-500.0,0.00041178,30]
[310905673,1704814278651,-500.0,0.00041178,30]
[310905674,1704814278660,-983.43,0.00041178,30]
[310905675,1704814278669,-628.8,0.00041178,30]
[310905676,1704814278678,-500.0,0.00041178,30]
[310905677,1704814278687,-500.0,0.00041178,30]
[310905678,1704814278697,-500.0,0.00041178,30]
[310905679,1704814278706,-500.0,0.00041178,30]
[310905680,1704814278716,-500.0,0.00041178,30]
[310905681,1704814278726,-500.0,0.00041178,30]
[310905682,1704814278735,-500.0,0.00041178,30]
[310905683,1704814278744,-500.0,0.00041178,30]
[310905684,1704814278753,-500.0,0.00041178,30]
[310905685,1704814278763,-500.0,0.00041178,30]
[310905686,1704814278772,-500.0,0.00041178,30]
[310905687,1704814278781,-500.0,0.00041178,30]
[310905688,1704814278791,-500.28702458,0.00041178,8]
[310905689,1704814278800,-544.66,0.00041178,30]
[310905690,1704814278810,-500.0,0.00041178,30]
[310905691,1704814278819,-510.35242764,0.00041178,30]
[310905692,1704814278828,-500.0,0.00041178,30]
[310905693,1704814278837,-500.0,0.00041178,30]
[310905694,1704814278846,-1232.09,0.00041178,30]
[310905695,1704814278856,-500.0,0.00041178,30]
[310905696,1704814278865,-500.0,0.00041178,30]
[310905697,1704814278875,-500.0,0.00041178,30]
[310905698,1704814278884,-500.0,0.00041178,30]
[310905699,1704814278894,-500.0,0.00041178,30]
[310905700,1704814278903,-832.26,0.00041178,30]
[310905701,1704814278913,-500.0,0.00041178,30]
[310905702,1704814278922,-500.0,0.00041178,7]
[310905703,1704814278931,-500.0,0.00041178,30]
[310905704,1704814278941,-941.95,0.00041178,30]
[310905705,1704814278951,-500.0,0.00041178,30]
[310905706,1704814278961,-500.0,0.00041178,30]
[310905707,1704814278971,-809.62,0.00041178,30]
[310905708,1704814278981,-500.0,0.00041178,30]
[310905709,1704814278991,-500.0,0.00041178,30]
[310905710,1704814279001,-1379.83,0.00041178,30]
[310905711,1704814279012,-500.0,0.00041178,30]
[310905712,1704814279021,-500.0,0.00041178,30]
[310905713,1704814279033,-500.0,0.00041178,30]
[310905714,1704814279043,-500.0,0.00041178,30]
[310905715,1704814279053,-223.707344,0.00041178,30]
[310905716,1704814279062,-500.0,0.00041178,30]
[310905717,1704814279071,-500.0,0.00041178,30]
[310905718,1704814279081,-844.05,0.00041178,30]
[310905719,1704814279090,-851.49,0.00041178,30]
[310905720,1704814279101,-562.95,0.00041178,30]
[310905721,1704814279112,-1162.12,0.00041178,30]
[310905722,1704814279122,-500.0,0.00041178,30]
[310905723,1704814279131,-872.21,0.00041178,30]
[310905724,1704814279141,-706.17,0.00041178,30]
[310905725,1704814279151,-500.0,0.00041178,30]
[310905726,1704814279161,-980.88,0.00041178,30]
[310905727,1704814279171,-500.0,0.00041178,30]
[310905728,1704814279180,-181.36735634,0.00041178,30]
[310905729,1704814279190,-500.0,0.00041178,30]
[310905730,1704814279199,-730.77,0.00041178,30]
[310905731,1704814279210,-500.0,0.00041178,30]
[310905732,1704814279220,-500.0,0.00041178,30]
[310905733,1704814279229,-500.0,0.00041178,30]
[310905734,1704814279239,-500.0,0.00041178,30]
[310905735,1704814279249,-635.39,0.00041178,30]
[310905736,1704814279259,-500.0,0.00041178,30]
[310905737,1704814279268,-506.191896,0.00041178,30]
[310905738,1704814279277,-613.33,0.00041178,30]
[310905739,1704814279286,-921.8,0.00041178,30]
[310905740,1704814279297,-500.0,0.00041178,30]
[310905741,1704814279306,-507.1799395,0.00041178,30]
[310905742,1704814279317,-500.0,0.00041178,30]
[310905743,1704814279327,-1001.03,0.00041178,30]
[310905744,1704814279337,-2820.32,0.00041178,30]
[310905745,1704814279347,-500.0,0.00041178,30]
[310905746,1704814279356,-533.33013236,0.00041178,30]
[310905747,1704814279366,-878.02,0.00041178,30]
[310905748,1704814279376,-2535.74,0.00041178,30]
[310905749,1704814279387,-500.0,0.00041178,30]
[310905750,1704814279397,-500.0,0.00041178,30]
[310905751,1704814279406,-1197.1,0.00041178,30]
[310905752,1704814279416,-500.0,0.00041178,30]
[310905753,1704814279426,-500.0,0.00041178,30]
[310905754,1704814279436,-500.0,0.00041178,30]
[310905755,1704814279445,-500.0,0.00041178,30]
[310905756,1704814279455,-703.38,0.00041178,30]
[310905757,1704814279465,-500.0,0.00041178,30]
[310905758,1704814279474,-500.0,0.00041178,30]
[310905759,1704814279484,-500.0,0.00041178,30]
[310905760,1704814279494,-500.0,0.00041178,30]
[310905761,1704814279504,-500.0,0.00041178,30]
[310905762,1704814279514,-500.0,0.00041178,30]
[310905763,1704814279524,-500.0,0.00041178,30]
[310905764,1704814279534,-500.0,0.00041178,30]
[310905765,1704814279545,-1209.27,0.00041178,30]
[310905766,1704814279555,-500.0,0.00041178,30]
[310905767,1704814279565,-3470.75,0.00041178,30]
[310905768,1704814279576,-736.81,0.00041178,30]
[310905769,1704814279585,-500.0,0.00041178,30]
[310905770,1704814279595,-500.0,0.00041178,30]
[310905771,1704814279605,-175.48414421,0.00041178,30]
[310905772,1704814279615,-500.0,0.00041178,30]
[310905773,1704814279624,-500.0,0.00041178,30]
[310905774,1704814279634,-634.39731477,0.00041178,30]
[310905775,1704814279644,-832.75,0.00041178,30]
[310905776,1704814279653,-1686.91,0.00041178,30]
[310905777,1704814279663,-2682.01,0.00041178,30]
[310905778,1704814279673,-2537.38,0.00041178,30]
[310905779,1704814279683,-1565.58,0.00041178,30]
[310905780,1704814279693,-353.97036462,0.00041178,30]
[310905781,1704814279703,-740.27,0.00041178,30]
[310905782,1704814279712,-600.36,0.00041178,30]
[310905783,1704814279723,-501.25,0.00041178,30]
[310905784,1704814279733,-500.0,0.00041178,30]
[310905785,1704814279744,-500.0,0.00041178,30]
[310905786,1704814279754,-1224.61,0.00041178,30]
[310905787,1704814279765,-2236.0,0.00041178,30]
[310905788,1704814279776,-2897.3,0.00041178,30]
[310905789,1704814279792,-1928.1,0.00041178,30]
[310905790,1704814279809,-500.0,0.00041178,30]
[310905791,1704814279819,-500.0,0.00041178,30]
[310905792,1704814279830,-511.45037782,0.00041178,30]
[310905793,1704814279841,-1993.87,0.00041178,30]
[310905794,1704814279852,-576.08,0.00041178,30]
[310905795,1704814279863,-500.0,0.00041178,30]
[310905796,1704814279874,-503.66102208,0.00041178,30]
[310905797,1704814279885,-556.49,0.00041178,30]
[310905798,1704814279896,-610.70538185,0.00041178,30]
[310905799,1704814279907,-624.68,0.00041178,30]
[310905800,1704814279917,-770.16,0.00041178,30]
[310905801,1704814279927,-2377.69,0.00041178,30]
[310905802,1704814279938,-500.0,0.00041178,30]
[310905803,1704814279949,-500.0,0.00041178,30]
[310905804,1704814279959,-1122.24,0.00041178,30]
[310905805,1704814279969,-500.0,0.00041178,30]
[310905806,1704814279979,-221.89920821,0.00041178,30]
[310905807,1704814279988,-500.0,0.00041178,30]
[310905808,1704814279998,-500.0,0.00041178,30]
[310905809,1704814280008,-500.0,0.00041178,30]
[310905810,1704814280018,-5013.3227288,0.00041178,14]
[310905811,1704814280028,-2275.75,0.00041178,30]
[310905812,1704814280265,-2702.81,0.00041178,30]
[310905813,1704814280275,-498.5988,0.00041178,2]
[310905814,1704814280284,-500.0,0.00041178,30]
[310905815,1704814280296,-500.0,0.00041178,30]
[310905816,1704814280306,-500.0,0.00041178,30]
[310905817,1704814280316,-500.0,0.00041178,30]
[310905818,1704814280325,-1074.62,0.00041178,30]
[310905819,1704814280335,-787.86,0.00041178,30]
[310905820,1704814280345,-500.0,0.00041178,30]
[310905821,1704814280355,-500.0,0.00041178,30]
[310905822,1704814280365,-2309.85,0.00041178,30]
[310905823,1704814280375,-3474.73,0.00041178,30]
[310905824,1704814280385,-500.0,0.00041178,30]
[310905825,1704814280394,-2283.1,0.00041178,30]
[310905826,1704814280404,-1596.69,0.00041178,30]
[310905827,1704814280414,-514.32755869,0.00041178,30]
[310905828,1704814280425,-1645.78,0.00041178,30]
[310905829,1704814280435,-1113.3,0.00041178,30]
[310905830,1704814280445,-500.0,0.00041178,30]
[310905831,1704814280455,-1309.33,0.00041178,30]
[310905832,1704814280464,-500.0,0.00041178,30]
[310905833,1704814280474,-1314.94,0.00041178,30]
[310905834,1704814280484,-363.94784193,0.00041178,30]
[310905835,1704814280494,-500.0,0.00041178,30]
[310905836,1704814280503,-500.0,0.00041178,30]
[310905837,1704814280513,-307.5081943,0.00041178,30]
[310905838,1704814280522,-1968.01,0.00041178,30]
[310905839,1704814280531,-500.0,0.00041178,2]
[310905840,1704814280541,-1096.11,0.00041178,30]
[310905841,1704814280552,-1246.22,0.00041178,30]
[310905842,1704814280561,-721.49,0.00041178,30]
[310905843,1704814280571,-544.47,0.00041178,30]
[310905844,1704814280580,-582.92137933,0.00041178,30]
[310905845,1704814280590,-500.0,0.00041178,30]
[310905846,1704814280601,-2589.92,0.00041178,30]
[310905847,1704814280612,-1433.82,0.00041178,30]
[310905848,1704814280622,-500.0,0.00041178,30]
[310905849,1704814280633,-500.0,0.00041178,30]
[310905850,1704814280645,-500.0,0.00041178,30]
[310905851,1704814280655,-1499.73,0.00041178,30]
[310905852,1704814280666,-500.0,0.00041178,30]
[310905853,1704814280676,-500.0,0.00041178,30]
[310905854,1704814280686,-1138.55,0.00041178,30]
[310905855,1704814280696,-2193.46,0.00041178,30]
[310905856,1704814280706,-1590.0,0.00041178,30]
[310905857,1704814280716,-1703.93,0.00041178,30]
[310905858,1704814280727,-1188.38,0.00041178,30]
[310905859,1704814280737,-500.0,0.00041178,30]
[310905860,1704814280747,-500.0,0.00041178,30]
[310905861,1704814280757,-500.0,0.00041178,30]
[310905862,1704814280768,-500.0,0.00041178,30]
[310905863,1704814280779,-500.0,0.00041178,30]
[310905864,1704814280789,-500.0,0.00041178,30]
[310905865,1704814280799,-987.73,0.00041178,30]
[310905866,1704814280809,-520.23,0.00041178,30]
[310905867,1704814280820,-1982.92,0.00041178,30]
[310905868,1704814280829,-523.39,0.00041178,30]
[310905869,1704814280839,-562.23,0.00041178,30]
[310905870,1704814280848,-641.09,0.00041178,30]
[310905871,1704814280859,-535.78417056,0.00041178,30]
[310905872,1704814280869,-455.75158727,0.00041178,30]
[310905873,1704814280879,-931.93,0.00041178,30]
[310905874,1704814280890,-552.3,0.00041178,30]
[310905875,1704814280900,-500.0,0.00041178,30]
[310905876,1704814280910,-1038.62,0.00041178,30]
[310905877,1704814280921,-1121.37,0.00041178,30]
[310905878,1704814280931,-3941.88,0.00041178,30]
[310905879,1704814280941,-1031.35,0.00041178,30]
[310905880,1704814280951,-1704.41,0.00041178,30]
[310905881,1704814280962,-500.0,0.00041178,30]
[310905882,1704814280972,-600.61,0.00041178,30]
[310905883,1704814280982,-672.4,0.00041178,30]
[310905884,1704814280992,-504.05464565,0.00041178,30]
[310905885,1704814281001,-1793.95,0.00041178,30]
[310905886,1704814281012,-507.45328356,0.00041178,30]
[310905887,1704814281022,-830.11,0.00041178,30]
[310905888,1704814281032,-500.0,0.00041178,30]
[310905889,1704814281043,-626.73,0.00041178,30]
[310905890,1704814281054,-1939.09,0.00041178,30]
[310905891,1704814281065,-500.0,0.00041178,30]
[310905892,1704814281076,-500.0,0.00041178,30]
[310905893,1704814281087,-500.0,0.00041178,30]
[310905894,1704814281097,-1992.23,0.00041178,30]
[310905895,1704814281107,-525.90242277,0.00041178,30]
[310905896,1704814281118,-1672.06,0.00041178,30]
[310905897,1704814281129,-500.0,0.00041178,30]
[310905898,1704814281139,-500.0,0.00041178,30]
[310905899,1704814281150,-1049.82,0.00041178,30]
[310905900,1704814281160,-832.6,0.00041178,30]
[310905901,1704814281170,-1154.73,0.00041178,30]
[310905902,1704814281181,-592.07,0.00041178,30]
[310905903,1704814281192,-617.46,0.00041178,30]
[310905904,1704814281201,-2019.49,0.00041178,30]
[310905905,1704814281211,-500.0,0.00041178,30]
[310905906,1704814281221,-500.0,0.00041178,30]
[310905907,1704814281231,-623.61,0.00041178,30]
[310905908,1704814281240,-639.74986749,0.00041178,30]
[310905909,1704814281250,-1575.33,0.00041178,30]
[310905910,1704814281259,-500.0,0.00041178,30]
[310905911,1704814281269,-500.0,0.00041178,30]
[310905912,1704814281279,-500.0,0.00041178,30]
[310905913,1704814281290,-500.0,0.00041178,30]
[310905914,1704814281301,-574.55,0.00041178,30]
[310905915,1704814281311,-500.0,0.00041178,30]
[310905916,1704814281322,-1208.87,0.00041178,30]
[310905917,1704814281333,-589.72,0.00041178,30]
[310905918,1704814281343,-500.0,0.00041178,30]
[310905919,1704814281353,-1100.7,0.00041178,30]
[310905920,1704814281363,-500.0,0.00041178,30]
[310905921,1704814281372,-500.0,0.00041178,30]
[310905922,1704814281382,-1443.2,0.00041178,30]
[310905923,1704814281392,-1118.67,0.00041178,30]
[310905924,1704814281401,-500.0,0.00041178,30]
[310905925,1704814281417,-1567.43,0.00041178,30]
[310905926,1704814281427,-500.0,0.00041178,30]
[310905927,1704814281437,-538.72,0.00041178,30]
[310905928,1704814281446,-500.0,0.00041178,30]
[310905929,1704814281455,-500.0,0.00041178,30]
[310905930,1704814281465,-500.0,0.00041178,30]
[310905931,1704814281474,-615.94,0.00041178,30]